{"text_format":"1","workbook":"xlsx","n_sheets":4,"sheets":["data","text","New CP22","Re-enrolled CP22"],"not_rendered":{"charts":0,"images":18,"macros":1,"external_links":1,"defined_names":16,"comments":0,"pivot_tables":0},"unopened":[],"bounds":{"document_bytes":16777216,"sheet_cells":100000,"rows_first":2000,"rows_last":500,"rows_between":2000,"halvings":0,"cell_chars":16384,"cell_head_chars":4096},"cells_cut":0,"cells_raw":0,"read":"whole","date_system":"1900"}

{"sheet":"data","index":0,"n_rows":148,"n_cols":8,"rows_kept":148,"cut":false,"hidden":true,"merged":[[71,5,71,16]]}
["Participant",null,"Project or Contract"]
["Location",null,"County"]
["Farm Number",null,"Tract Number"]
[null,null,null,null,1]
[null,"Select ",null,null,2]
["x","CP 1",null,null,3]
[null,"CP 2",null,null,4]
[null,"CP 4D",null,null,5]
[null,"CP 8A",null,null,6]
[null,"CP 9",null,null,7]
[null,"CP 15A",null,null,8]
[null,"CP 21",null,null,9]
[null,"CP 22",null,null,10]
[null,"CP 23"]
[null,"CP 23A"]
[null,"CP 29"]
[null,"CP 30"]
[null,"CP 33"]
[null,"CP 42"]
[]
[null,"Over-seeding Planned"]
["Mowing Pattern (Check 1) "]
[null,"Entire Acreage"]
[null,"Alternating row"]
[null,"Alternating block",null,null,"10 yrs to 10 yrs, 11 months           "]
[null,"Tree / Shrub Area  ",null,null,"11 yrs to 11 yrs, 11 months           "]
[null,"in year 4 or 5, but before end of year 6           ",null,null,"12 yrs to 12 yrs, 11 months           "]
[null,"in year 4 or 5, but before end of year 6",null,null,"13 yrs to 13 yrs, 11 months           "]
[null,"in year 4 or 5, but before end of year 6",null,null,"14 yrs to 14 yrs, 11 months           "]
[null,"in year 4 or 5, but before end of year 9           ",null,null,"15 years                                             "]
[null,"in year 4 or 5, but before end of year 9           ",null,null,"Re-enrollment contract"]
[null,"in year 4 or 5, but before end of year 9           "]
[{"$f":"data!E53","v":0},"Not Applicable"]
[null,"before end of year 8"]
[null,"before end of year 9"]
[null,"before end of year 10"]
[null,"before end of year 11"]
[null,"before end of year 12"]
[null,"before end of year 13"]
[null,"at re-enrollment"]
[]
[null,{"$f":"indirect","v":{"$error":"#NAME?"}}]
[]
[]
[null,null,null,"Mowing Method","MowingImageLookup"]
[null,null,1,"Entire Acreage"]
[null,null,2,"Alternating row"]
[null,null,3,"Alternating block"]
[null,null,4,"Tree / Shrub Area  "]
[]
[]
[]
[]
[]
[]
[]
[null,null,"Select a Purpose",null,null,"Select Mowing Height"]
["Select County",null,"Create shade to lower water temperatures to improve habitat for aquatic organisms.",null,null,"Mow cool-season grasses no lower than 6 inches."]
["Adams",null,"Create or improve riparian habitat for wildlife and provide a source of detritus and large woody debris.",null,null,"Mow warm-season grasses no lower than 8 inches."]
["Allegheny",null,"Reduce excess amounts of sediment, organic material, nutrients and pesticides in surface runoff; reduce excess nutrients and other chemicals in shallow ground water flow."]
["Armstrong",null,"Reduce pesticide drift entering the water body."]
["Beaver",null,"Restore riparian plant communities."]
["Bedford",null,"Increase carbon storage in plant biomass and soils."]
["Berks"]
["Blair"]
["Bradford"]
["Bucks",null,"Select a site preparation method",null,null,"   "]
["Butler",null,"Mow prior to herbicide application, to make herbicide application easier/more effective.  ",null,null,"If planting will occur in the spring, mow the areas planned for herbicide treatment in the fall or winter of the previous year.  Winter mowing is effective and often easier on equipment: dormant plants are brittle and “shatter” more easily than growing plants, and the visibility of hazards like holes, rocks or old posts improves after leaves have dropped.  Mow at six inches or higher, spreading mowing residues evenly across mowed area. "]
["Cambria",null,"Apply appropriate herbicide(s), to remove mild amounts of competing vegetation.  ",null,null,"When weed pressure is NOT a major concern, spray only the “rows” for trees and shrubs.  Reduced spraying, on sites will little or no weed pressure, retains as much naturally-occurring vegetation (herbaceous and woody) as possible.  Treat the row areas with a systemic burn-down herbicide like glyphosate, to remove all vegetation.  Always follow herbicide label instructions for rate, timing, and methods of herbicide application(s).  Take special care to avoid herbicide carryover that may negatively affect the CRP or CREP planting."]
["Carbon",null,"Apply appropriate herbicide(s), to remove high amounts of competing vegetation.  ",null,null,"Where weed pressure IS a concern, spray the entire CP22 acreage.  Treat the entire CP22 area with herbicides, to reduce weed pressure or competing vegetation that will inhibit planting or threaten the successful establishment of the trees and shrubs.  If possible, spray rows with a systemic burn-down herbicide like glyphosate, but spray between-row areas with a broadleaf-specific herbicide like 2-4,D, to retain any existing grasses.  Extremely vigorous plants may require multiple treatments: apply herbicide(s) in early fall of the year prior to buffer planting, followed by another spring application of herbicides at least two weeks prior to planting.  Always follow herbicide label instructions for rate, timing, and methods of herbicide application(s).  Take special care to avoid herbicide carryover that may negatively affect the CRP or CREP planting.         "]
["Centre",null,"Plant grass between future tree and shrub rows.",null,null,"On previously-cropped fields which lack adequate cover or crop residues, establish grasses to limit erosion and/or competing vegetation.  Plant hard fescue at a rate of 8 lbs/ac; use a no-till if possible.  Avoid planting within two feet of any tree or shrub.  If rows are 15 feet apart, plant an approximate 10-foot “band” down the middle of the rows; if trees and shrubs were planted randomly (not recommended by NRCS), broadcast the grass seed.   "]
["Clarion",null,"No site preparation needed (extremely rare).  ",null,null,"This option only applies to fields with little or no weed pressure or competing vegetation AND little or no seed bed.  Be aware that weed control is easiest and most effective before planting, rather than after.  No cost-sharing is available from USDA for this activity. "]
["Clearfield"]
["Clinton"]
["Columbia"]
["Crawford",null,"Select an MCM "]
["Cumberland",null,"Inter-seeding / Over-seeding"]
["Dauphin",null,"Inter-planting"]
["Delaware",null,"Prescribed Mowing"]
["Elk",null,"Spraying Herbicide for Wildlife Benefit"]
["Erie"]
["Fayette"]
["Forest"]
["Franklin"]
["Fulton"]
["Greene",null,"shrubsite","dry_shrub","shelter?"]
["Huntingdon",null,"dry_shrub","Crabapple, American","tube"]
["Indiana",null,"wet_shrub","Dogwood, flowering","fence"]
["Jefferson",null,null,"Dogwood, grey","none"]
["Juniata",null,null,"Fringetree"]
["Lackawanna",null,null,"Hawthorne"]
["Lancaster",null,null,"Huckleberry, black","treetype","tree site"]
["Lawrence",null,"shrubtype","Inkberry (holly)","BR","dry_tree"]
["Lebanon",null,"LS","Laurel, mountain","CONT","wet_tree"]
["Lehigh",null,"BR","Raspberry / Blackberry","BaB"]
["Luzerne",null,"CONT","Redbud"]
["Lycoming",null,null,"Serviceberry"]
["McKean",null,null,"Sumac, staghorn","wet_tree",null,null,"dry_tree"]
["Mercer",null,null,"Viburnum, blackhaw","Birch, gray",null,null,"Aspen, big-toothed"]
["Mifflin",null,null,"Viburnum, nannyberry","Birch, river",null,null,"Basswood, American"]
["Monroe",null,null,"Winterberry (holly)","Birch, yellow",null,null,"Beech, American"]
["Montgomery",null,null,"Witchhazel","Boxelder",null,null,"Birch, black"]
["Montour",null,null,null,"Cedar, northern white",null,null,"Birch, sweet"]
["Northampton",null,null,null,"Cottonwood, eastern",null,null,"Birch, white/paper"]
["Northumberland",null,null,"wet_shrub","Elm, slippery",null,null,"Butternut"]
["Perry",null,null,"Azalea, swamp","Oak, pin",null,null,"Cedar, eastern red"]
["Philadelphia",null,null,"Bayberry","Oak, swamp white",null,null,"Cherry, black"]
["Pike",null,null,"Blueberry, highbush","Oak, willow",null,null,"Cherry, pin"]
["Potter",null,null,"Buttonbush","Maple, black",null,null,"Chinquapin"]
["Schuylkill",null,null,"Chokeberry, black","Maple, red",null,null,"Coffee-tree, Kentucky"]
["Snyder",null,null,"Chokeberry, red","Spruce, black",null,null,"Elm, American"]
["Somerset",null,null,"Clethra, summersweet","Sycamore, American",null,null,"Fir, balsam"]
["Sullivan",null,null,"Dogwood, grey","Willow, black",null,null,"Gum, black"]
["Susquehanna",null,null,"Dogwood, redosier",null,null,null,"Gum, sweet"]
["Tioga",null,null,"Dogwood, silky",null,null,null,"Hackberry, northern"]
["Union",null,null,"Elderberry",null,null,null,"Hickory, bitternut"]
["Venango",null,null,"Groundsel-bush",null,null,null,"Hickory, mockernut"]
["Warren",null,null,"Hazelnut, American",null,null,null,"Hickory, pignut"]
["Washington",null,null,"Inkberry (holly)","Buttonbush",null,null,"Hickory, shellbark"]
["Wayne",null,null,"Magnolia, sweetbay","Dogwood, redosier",null,null,"Hickory, shagbark"]
["Westmoreland",null,null,"Meadowsweet","Dogwood, silky",null,null,"Holly, American"]
["Wyoming",null,null,"Ninebark","Elderberry",null,null,"Hop-hornbeam"]
["York",null,null,"Rhododendron, rosebay","Viburnum, arrowwood",null,null,"Ironwood / Hornbeam"]
[null,null,null,"Rose, swamp","Viburnum, nannyberry",null,null,"Locust, black"]
[null,null,null,"Spicebush","Willow, black",null,null,"Locust, honey"]
[null,null,null,"Viburnum, arrowwood","Willow, dwarf",null,null,"Maple, silver"]
[null,null,null,"Viburnum, cranberrybush","Willow, peachleaf ",null,null,"Mulberry, red"]
[null,null,null,"Viburnum, mapleleaf","Willow, pussy ",null,null,"Oak, black"]
[null,null,null,"Viburnum, nannyberry","Willow, sandbar",null,null,"Oak, bur"]
[null,null,null,"Viburnum, wither-rod","Willow, shining",null,null,"Oak, chestnut"]
[null,null,null,"Winterberry (holly)","Willow, silky",null,null,"Oak, pin, "]
[null,null,null,null,null,null,null,"Oak, red"]
[null,null,null,null,null,null,null,"Oak, scarlet"]
[null,null,null,null,null,null,null,"Oak, white"]
[null,null,null,null,"SHELTER",null,null,"Paw-paw"]
[null,null,null,null,"select",null,null,"Persimmon"]
[null,null,null,null,"solid",null,null,"Pine, pitch"]
[null,null,null,null,"mesh",null,null,"Pine, red,"]
[null,null,null,null,"solid/mesh combo",null,null,"Pine, shortleaf"]
[null,null,null,null,"fence",null,null,"Pine, Virginia"]
[null,null,null,null,null,null,null,"Pine, white"]
[null,null,null,null,"select",null,null,"Plum, American"]
[null,null,null,null,"4'",null,null,"Poplar, tulip"]
[null,null,null,null,"5'",null,null,"Sassafras"]
[null,null,null,null,"6'",null,null,"Spruce, blue"]
[null,null,null,null,"select",null,null,"Spruce, Norway"]
[null,null,null,null,"2'",null,null,"Spruce, red"]
[null,null,null,null,"4'",null,null,"Spruce, white"]

{"sheet":"text","index":1,"n_rows":3,"n_cols":15,"rows_kept":3,"cut":false,"hidden":true,"merged":[[0,0,0,13]]}
["CP"]
[1,2,"4D","8A",9,"15A",21,22,23,"23A",29,30,33,42,"comment"]
[null,null,null,"x",null,"x","x",null,null,null,null,null,null,null,"May receive a one-time Prescribed Mowing of their entire acreage.  "]

{"sheet":"New CP22","index":2,"n_rows":245,"n_cols":13,"rows_kept":245,"cut":false,"hidden":false,"merged":[[179,5,179,7],[180,5,180,7],[181,5,181,7],[182,5,182,7],[183,5,183,7],[109,9,109,10],[109,11,109,12],[110,9,110,10],[177,8,177,11],[178,8,178,11],[179,8,179,11],[180,8,180,11],[181,8,181,11],[182,8,182,11],[110,11,110,12],[115,11,115,12],[116,9,116,10],[116,11,116,12],[117,9,117,10],[117,11,117,12],[113,9,113,10],[113,11,113,12],[114,9,114,10],[114,11,114,12],[230,4,230,6],[231,4,231,6],[232,4,232,6],[228,7,229,7],[228,8,229,8],[228,11,228,12],[119,9,119,10],[119,11,119,12],[120,9,120,10],[120,11,120,12],[150,3,150,12],[169,2,169,12],[173,2,173,12],[174,2,174,12],[175,2,175,12],[176,2,176,12],[186,2,186,12],[182,2,182,4],[183,2,183,4],[183,8,183,11],[178,2,178,4],[179,2,179,4],[180,2,180,4],[178,5,178,7],[241,2,241,10],[233,4,233,6],[234,4,234,6],[235,4,235,6],[236,4,236,6],[237,4,237,6],[238,4,238,6],[239,4,239,6],[242,2,242,12],[227,2,228,2],[228,3,229,3],[228,9,229,9],[228,10,229,10],[11,4,11,10],[12,4,12,10],[13,4,13,10],[14,4,14,10],[15,4,15,10],[16,4,16,10],[25,2,25,11],[26,2,26,12],[206,10,206,11],[206,8,206,9],[220,2,220,12],[132,2,135,2],[132,11,132,12],[134,11,134,12],[140,2,143,2],[140,11,140,12],[142,11,142,12],[219,2,219,5],[168,2,168,12],[228,4,228,6],[111,9,111,10],[111,11,111,12],[112,9,112,10],[112,11,112,12],[96,11,96,12],[97,9,97,10],[97,11,97,12],[107,9,107,10],[107,11,107,12],[108,9,108,10],[108,11,108,12],[105,9,105,10],[105,11,105,12],[106,9,106,10],[106,11,106,12],[102,9,102,10],[102,11,102,12],[103,9,103,10],[103,11,103,12],[98,9,98,10],[98,11,98,12],[101,9,101,10],[101,11,101,12],[99,9,99,10],[100,11,100,12],[96,9,96,10],[87,9,87,10],[87,11,87,12],[94,9,94,10],[94,11,94,12],[93,9,93,10],[93,11,93,12],[90,11,90,12],[91,9,91,10],[91,11,91,12],[92,9,92,10],[92,11,92,12],[24,2,24,12],[86,9,86,10],[86,11,86,12],[81,9,81,10],[81,11,81,12],[85,9,85,10],[85,11,85,12],[73,2,73,12],[77,9,77,10],[77,11,77,12],[79,9,79,10],[79,11,79,12],[80,9,80,10],[80,11,80,12],[71,2,71,12],[27,3,27,12],[32,2,32,12],[35,9,36,12],[78,9,78,10],[78,11,78,12],[34,10,34,11],[82,9,82,10],[82,11,82,12],[83,9,83,10],[2,2,2,3],[3,2,3,3],[4,2,4,3],[11,2,11,3],[12,2,12,3],[13,2,13,3],[19,2,19,12],[23,2,23,12],[2,10,2,11],[4,10,4,11],[2,4,2,7],[3,4,3,7],[4,4,4,7],[7,2,7,12],[8,2,8,12],[189,2,189,12],[35,3,36,8],[206,3,207,3],[206,5,207,5],[206,6,207,6],[206,7,207,7],[206,4,207,4],[205,2,206,2],[118,9,118,10],[118,11,118,12],[123,9,123,10],[123,11,123,12],[126,11,126,12],[127,2,130,2],[127,11,127,12],[129,11,129,12],[121,9,121,10],[121,11,121,12],[122,9,122,10],[122,11,122,12],[177,2,177,4],[181,2,181,4],[177,5,177,7],[89,11,89,12],[83,11,83,12],[84,9,84,10],[84,11,84,12],[153,2,153,12],[154,2,154,12],[155,3,155,8],[155,10,155,12],[128,11,128,12],[130,11,130,12],[131,11,131,12],[133,11,133,12],[135,11,135,12],[136,11,136,12],[137,11,137,12],[138,11,138,12],[139,11,139,12],[141,11,141,12],[143,11,143,12],[144,11,144,12],[88,11,88,12],[89,9,89,10],[88,9,88,10],[99,11,99,12],[100,9,100,10]]}
[]
[]
[null,null,"Participant:",null,null,null,null,null,null,"FSA Contract:  "]
[null,null,"Location:",null,null,null,null,null,null,"County:  "]
[null,null,"Farm Number:",null,null,null,null,null,null,"Tract Number:  "]
[]
[null,null,"Definition"]
[null,null,"Riparian forest buffers are areas of predominantly trees and/or shrubs located adjacent to and upslope from watercourses or water bodies. Dominant vegetation in buffers is native species of trees and/or shrubs."]
[]
[null,null,"Purpose(s):  "]
[null,null,"Establish and maintain a Riparian Forest Buffer that will:   (select all that apply)   "]
[null,null,"1.",null,"Select a Purpose"]
[null,null,"2.",null,"Select a Purpose"]
[null,null,"3.",null,"Select a Purpose"]
[null,null,null,"4.","Select a Purpose"]
[null,null,null,"5.","Select a Purpose"]
[null,null,null,"6.","Select a Purpose"]
[]
[null,null,"Description:"]
[null,null,"The plants in a riparian forest buffer remove sediment, nutrients, pesticides and other pollutants in runoff that would otherwise reach streams and other water bodies.  Their leafy canopies shade and cool the water, which in turn encourages natural in-steam processes and supports fish and insects.  In some cases, those same canopies provide nectar, pollen, and egg-laying sites for pollinators.  The buffers offer safety, food and living space for many wildlife species, frequently providing much-needed connecting corridors and linkages across the landscape.  The plants in the buffer also improve air quality by removing carbon dioxide from the air and storing it as organic carbon in the vegetation and soil."]
[]
[]
[null,null,"Practice Guidance for New Riparian Forest Buffers (establishment of new CP22 acres):  "]
[null,null,"Establish native trees and shrubs in the fields indicated in Table 1 and on the Conservation Plan Map, by following the Site Preparation, and Establishment guidance below.  Weed control (mowing or herbicide treatment) during the period of four years after planting is especially important to help the trees and shrubs establish successfully.  After the trees and shrubs are established, follow the Operation and Maintenance requirements below.  CRP/CREP contracts also require periodic management of CP22 acres, which should follow the Mid-Contract Management guidance below. "]
[null,null,"Site Preparation prior to planting new CP22 acres "]
[null,null,"Mow prior to herbicide application, to make herbicide application easier/more effective.  "]
[null,null,{"$f":"IF(C26=data!C68,data!F68, IF(C26=data!C69,data!F69, IF(C26=data!C70,data!F70, IF(C26=data!C71,data!F71, IF(C26=data!C72,data!F72)))))","v":"If planting will occur in the spring, mow the areas planned for herbicide treatment in the fall or winter of the previous year.  Winter mowing is effective and often easier on equipment: dormant plants are brittle and “shatter” more easily than growing plants, and the visibility of hazards like holes, rocks or old posts improves after leaves have dropped.  Mow at six inches or higher, spreading mowing residues evenly across mowed area. "}]
[null,null,"SITE-                   SPECIFIC NOTES","Enter text here"]
[]
[null,null,"Stream or Water Body name:"]
[]
[null,null,"Buffer Dimensions"]
[null,null,"     All CRP/CREP CP22s must be at least 35' wide, and can usually be a maximum of 180' wide on average.  Any CREP CP22 ≤ 50' wide will receive payments from FSA only, while CREP CP22s ≥ 50' wide can receive payments from both FSA and state CREP partners.   "]
[]
[null,null,null,null,"Trees and Shrubs",null,null,null,null,null,"Grasses "]
[null,null,"BUFFER","('left' / 'right' are facing upstream; use only left when buffering ponds, wetlands, etc.) ",null,null,null,null,null,"(3-zone buffer only; complete CP1 / CP2 Job Sheet for grasses)"]
[null,null,"WIDTH"]
[null,null,null,"Left (ft):",null,null,"Right (ft):",null,null,"Left (ft):",null,"Rt (ft):"]
[]
[null,null,"BUFFER"]
[null,null,"LENGTH","Left (ft):",null,"Right (ft):",null,null,null,"Left (ft):",null,"Rt (ft):"]
[null,null,null,null,null,{"$f":"((E38*E41)+(H38*G41))/43560","v":0},null,null,null,null,null,{"$f":"((K38*K41)+(M38*M41))/43560","v":0}]
[null,null,"BUFFER","  Tree/Shrub area=",null,{"$f":"ROUND(F42, 2)","v":0},"acre(s)",null,null,"  Grass area=",null,{"$f":"ROUND(L42, 2)","v":0},"ac(s)"]
[null,null,"SIZE"]
[null,null,null,null,null,"TOTAL BUFFER ACRES = ",{"$f":"F43+L43","v":0}]
[null,null,null,null,null,null,null,null,{"$f":"ROUNDUP(((F43-G49-I59)*150),0)","v":0}]
[null,null,"Plant Materials: Type, Spacing, and Amounts Needed"]
[]
[null,null,"DIRECT","   Plant seeds and/or nuts on",null,null,0,"acres*, for the following specific reason(s):"]
[null,null,"SEED"]
[null,null,null,"   * see accompanying map for area(s) to be direct-seeded."]
[]
[null,null,null,"  Planting large seeds or nuts -- acorns, walnuts, etc. -- on a 4' x 4' spacing (~ 2,700 seeds"]
[null,null,"choose","    and nuts per acre) will require at least ",null,null,null,null,{"$f":"IF(J55=1,I55,J55)","v":0},"seeds or nuts."]
[null,null,"one (x)",null,null,null,null,null,{"$f":"ROUND((G49*2700),0)","v":0},{"$f":"COUNTA(C53)","v":0}]
[null,null,null,"  Planting or broadcasting smaller seeds into prepared seedbeds at roughly 100,000 seeds"]
[null,null,null,"    per acre will require at least",null,null,null,{"$f":"IF(K57=1,J57,K57)","v":0},"seeds.",{"$f":"ROUND((G49*100000),0)","v":0},{"$f":"COUNTA(C56)","v":0}]
[]
[null,null,"LIVE","   Plant live stakes which are at least 2' long, on",null,null,null,null,null,"acres*, for these reason(s): "]
[null,null,"STAKES"]
[null,null,null,"   * see accompanying map for area(s) to be planted with live stakes or cuttings."]
[]
[null,null,"Planting live stakes on a 5' x 5' spacing (roughly 1,750 live stakes per acre), will require ≥",null,null,null,null,null,null,null,null,null,{"$f":"ROUND((I59*1750),0)","v":0}]
[null,null,"live stakes.  Challenging locations, like streambanks, may require adjustment or alteration of the"]
[null,null,"planting layout."]
[]
[]
[null,null,"TREES /","  Plant trees and shrubs (bareroot, containerized, or ball-and-burlap) on  ",null,null,null,null,null,null,null,{"$f":"F43-G49-I59","v":0},"ac(s)"]
[null,null,"SHRUBS","    Planting at a spacing of 15' x 13' (15' between the rows, and 13' between plants within"]
[null,null,null,"    the row) will require at least",null,null,null,{"$f":"ROUNDUP(((L68*194)*0.7),0)","v":0},"trees and ",null,{"$f":"ROUNDUP(((L68*194)*0.3),0)","v":0},"shrubs."]
[]
[null,null,"     CP22s must include at least four species of trees and two species of shrubs.  More species may be used, if desired.  See Tree and Shrub Specifications section for plant specifications.  NRCS must pre-approve plant substitutions.  Match species selections and planting locations to site-specific conditions: plant only wet-tolerant species in wet areas, and only dry-site species in upland areas. "]
[null,null,"     A maximum total of ",null,{"$f":"ROUNDDOWN(((H70+K70)*0.2),0)","v":0},"conifers (pines, spruces, hemlocks, etc.) may be planted in the"]
[null,null,"CP22.  Conifers are not required; if conifers are included, only native or approved conifers may be used.  Do not plant conifers in the two rows closest to the stream or water body being buffered. "]
[]
[null,null,"Tree and Shrub Specifications  "]
[]
[null,null,"Tree species--  bareroot, containerized, or ball-and-burlap"]
[null,null,"Site","Tree Species",null,null,null,null,null,"Planned #",null,"Applied #"]
[null,null,null,null,null,null,null,null,null,0,null,0]
[null,null,null,null,null,null,null,null,null,0,null,0]
[null,null,null,null,null,null,null,null,null,0,null,0]
[null,null,null,null,null,null,null,null,null,0,null,0]
[null,null,null,null,null,null,null,null,null,0,null,0]
[null,null,null,null,null,null,null,null,null,0,null,0]
[null,null,null,null,null,null,null,null,null,0,null,0]
[null,null,null,null,null,null,null,null,null,0,null,0]
[null,null,null,null,null,null,null,null,null,0,null,0]
[null,null,null,null,null,null,null,null,null,0,null,0]
[null,null,null,null,null,"Conifers (trees/shrubs combined) must be ≤",{"$f":"E73","v":0},null,null,{"$f":"SUM(J79:J89)","v":0},null,{"$f":"SUM(L79:L89)","v":0}]
[]
[null,null,"Tree species--  live stake or cutting"]
[null,null,"Site","Tree Species",null,null,null,null,null,"Planned #",null,"Applied #"]
[null,null,null,null,null,null,null,null,null,0,null,0]
[null,null,null,null,null,null,null,null,null,{"$f":"SUM(J93:J94)","v":0},null,{"$f":"SUM(L93:L94)","v":0}]
[]
[null,null,"Tree species--  seed or nut planting"]
[null,null,"Site","Tree Species",null,null,null,null,null,"Planned #",null,"Applied #"]
[null,null,null,null,null,null,null,null,null,0,null,0]
[null,null,null,null,null,null,null,null,null,0,null,0]
[null,null,null,null,null,null,null,null,null,0,null,0]
[null,null,null,null,null,null,null,null,null,0,null,0]
[null,null,null,null,null,null,null,null,null,0,null,0]
[null,null,null,null,null,{"$f":"F47+F50","v":0},null,null,null,{"$f":"SUM(J98:J103)","v":0},null,{"$f":"SUM(L98:L103)","v":0}]
[]
[null,null,"Shrub species--  bareroot, containerized, or ball-and-burlap"]
[null,null,"Site","Shrub Species",null,null,null,null,null,"Planned #",null,"Applied #"]
[null,null,null,null,null,null,null,null,null,0,null,0]
[null,null,null,null,null,null,null,null,null,0,null,0]
[null,null,null,null,null,null,null,null,null,0,null,0]
[null,null,null,null,null,null,null,null,null,0,null,0]
[null,null,null,null,null,null,null,null,null,0,null,0]
[null,null,null,null,null,null,null,null,null,0,null,0]
[null,null,null,null,null,null,null,null,null,0,null,0]
[null,null,null,null,null,"Conifers (trees/shrubs combined) must be ≤",{"$f":"E68","v":0},null,null,{"$f":"SUM(J107:J114)","v":0},null,{"$f":"SUM(L107:L114)","v":0}]
[]
[null,null,"Shrub species--  live stakes or cuttings"]
[null,null,"Site","Shrub Species",null,null,null,null,null,"Planned #",null,"Applied #"]
[null,null,"wet_shrub",null,null,null,null,null,null,0,null,0]
[null,null,null,null,null,null,null,null,null,0,null,0]
[null,null,null,null,null,null,null,null,null,0,null,0]
[null,null,null,null,null,null,null,null,null,0,null,0]
[null,null,null,null,null,null,null,null,null,0,null,0]
[null,null,null,null,null,null,null,null,null,{"$f":"SUM(J118:J123)","v":0},null,{"$f":"SUM(L118:L123)","v":0}]
[]
[]
[null,null,"Shelter Specifications  ",null,null,null,null,null,null,null,"Planned #","Applied #"]
[null,null,"Tree Shelters","Shelters for deciduous trees:",null,null,null,null,null,null,0]
[null,null,null,null,"shelter type:","select",null,null,"shelter height:","select",{"$f":"K128+K130","v":0}]
[null,null,null,"Shelters for coniferous trees",null,null,null,null,null,null,0]
[null,null,null,"     (approved cages or similar large-diameter shelter systems only)"]
[]
[null,null,"Shrub Shelters","Shelters for deciduous, single-stemmed shrubs",null,null,null,null,null,null,0]
[null,null,null,null,"shelter type:","select",null,null,"shelter height:","select",{"$f":"K133+K135","v":0}]
[null,null,null,"Shelters for coniferous or multi-stemmed shrubs",null,null,null,null,null,null,0]
[null,null,null,"     (approved cages or similar large-diameter shelter systems only)"]
[null,null,null,null,null,null,null,null,null,"Total # of tree tubes or approved similar shelters =",{"$f":"K128+K133","v":0}]
[null,null,null,null,null,null,null,null,null,"Total # of bird nets (or similar exclusion method) =",{"$f":"K137","v":0}]
[null,null,null,null,null,null,null,null,null,"Total # of cages or other approved large-diameter systems =",{"$f":"K130+K135","v":0}]
[]
[null,null,"Stakes","Stakes for tree tubes or similar systems",null,null,null,null,null,null,{"$f":"K128+K133","v":0}]
[null,null,null,"     (assumes one stake per tree tube or similar shelter)"]
[null,null,null,"Stakes for cages or large-diameter shelters",null,null,null,null,null,null,{"$f":"(K130+K135)*2","v":0}]
[null,null,null,"     (assumes two stakes per cage or similar large-diameter shelter)"]
[null,null,null,null,null,null,null,null,null,"Total # of stakes =",{"$f":"K141+K143","v":0}]
[null,null,null,null,null,null,null,null,null,"Minimum # of cable ties or similar attachment method =",{"$f":"K145*2","v":0}]
[]
[]
[]
[]
[null,null,"SITE-                   SPECIFIC NOTES","Enter text here"]
[]
[]
[]
[null,null,"Layout Dimensions, continued (refer to layout graphic, above right)"]
[null,null,null,"A.  Looking upstream, the total Buffer width averages ",null,null,null,null,null,{"$f":"E38","v":0},"feet on the left side of"]
[null,null,null,"      the stream and ",null,{"$f":"H38","v":0},"feet on the right side of the stream, as measured from"]
[null,null,null,"     top of the streambank to the outer boundary of the Buffer (including grass buffer, when"]
[null,null,null,"     applicable)."]
[null,null,null,"B.  Distance from the top of streambank to the first row of trees is ",null,null,null,null,null,null,0,"feet."]
[null,null,null,"C.  Distance between tree rows is",null,null,0,"feet.  ",{"$f":"IF((G161<15),K161,L161)","v":"must be ≥ 15'"},null,"must be ≥ 15'","    "]
[null,null,null,"D.  Distance between trees within a row is ",null,null,null,0,"feet.",{"$f":"IF((H162>12),L162,M162)","v":"    "},null,"must be ≤ 12'","    "]
[null,null,null,"E.  Distance between shrub rows is",null,null,0,"feet.  ",{"$f":"IF((G163<15),K163,L163)","v":"must be ≥ 15'"},null,"must be ≥ 15'","    "]
[null,null,null,"F.  Distance between shrubs within a row is ",null,null,null,0,"feet.",{"$f":"IF((H164>12),L164,M164)","v":"    "},null,"must be ≤ 12'","    "]
[null,null,null,"G.  Distance from the outer row of plants to the buffer boundary is",null,null,null,null,null,null,0,"feet."]
[null,null,null,"     (Includes Riparian Herbaceous Cover / grass edge, when applicable)."]
[]
[null,null,"Establishment of New CP22 Acres"]
[null,null,"New trees and shrubs typically need three to four years after seeding to fully establish.  During those years, CP22 establishment improves greatly with reduction of competing vegetation and/or weed pressure.  As a result, CRP and CREP rules allow mowing and spraying of CP22 acres, at any time during the four years of establishment.  Do not mow CP22 acres lower than 8 inches, and follow all label instructions when applying appropriate herbicides.  Contact NRCS prior to mowing or spraying, for technical assistance and to document the establishment actions taken."]
[null,null,"After the establishment period ends, mowing and spraying must follow the more restrictive timing and guidance given in Operation and Maintenance, below.  Therefore, NRCS recommends using the available mowing and/or spraying to its full advantage in the establishment years, to promote the most vigorous CP22 cover possible.    "]
[]
[]
[null,null,"Operation and Maintenance:   "]
[null,null,"To be compliant with the CRP/CREP contract, either 60% canopy cover OR 70% of the number of trees and shrubs originally planted must be present on the CP22 acres throughout the CRP/CREP contract.  Canopy cover or number of woody stems can include acceptable volunteer native trees or shrubs."]
[null,null,"To control unwanted vegetation and to keep the existing conservation cover in compliance with the CRP/CREP contract, perform maintenance (by spot mowing or herbicide treatment) on specific, limited locations where weeds occur, rather than whole fields or pre-set amounts of fields (i.e. 1/3 of a field).  Mow up to 20% (one-fifth) of any CP22 field in any given year; do not mow below 6 inches in height.  Treatment with appropriate herbicides should always follow label directions for rate, amount, and timing of herbicide application.  "]
[null,null,"Both spot mowing and herbicide treatment must occur between August 1 and August 31.  Spot mowing or herbicide treatment needed at other times of the year—for example, thistle control in May or early June—is possible, but must be requested from and pre-approved by the FSA County Committee.  "]
[null,null,"Control noxious weeds (seed list below) on all CP22 acres over the entire length of the CRP/CREP contract.  Mowing alone may not be sufficient to control noxious or invasive  vegetation; a follow-up herbicide treatment may be necessary.  Any CP22 trees aand/or shrubs destroyed must be re-established."]
[null,null,"animated oat",null,null,"giant hogweed",null,null,"musk/nodding thistle"]
[null,null,"broomrape",null,null,"goatsrue",null,null,"Palmer amaranth"]
[null,null,"bull thistle",null,null,"hydrilla",null,null,"poison hemlock"]
[null,null,"Canada thistle",null,null,"johnsongrass",null,null,"purple loosestrife"]
[null,null,"common waterhemp",null,null,"kudzu",null,null,"shattercane"]
[null,null,"dodder",null,null,"mile-a-minute",null,null,"tall waterhemp"]
[null,null,"Eur. wand loosestrife",null,null,"multiflora rose",null,null,"wavyleaf basketgrass"]
[]
[null,null,"Mid-Contract Management (MCM):   "]
[null,null,"Implement the MCM practices indicated in Table 2 below, to prolong, improve, or diversify the benefits of the CP22 cover.  Specific guidance for each MCM practice chosen can be found on the related Job Sheet(s) included with this CRP/CREP plan.  Contact NRCS for a site visit and field evaluation before conducting MCM, to verify that the contracted MCM activity applies to the condition of the site."]
[]
[]
[null,null,"By signing this document, the participant agrees to implement the Riparian Forest Buffer (CP22) conservation practice, following the technical recommendations provided by NRCS and approved by FSA."]
[]
[]
[]
[]
[]
[]
[]
[]
[]
[]
[]
[]
[]
[]
[null,null,"Table 1: Riparian Forest Buffer (CP22) installation",null,null,null,null,null,"(items in grey are for USDA reporting only)"]
[null,null,"Select number of fields"]
[null,null,null,"Field","Acres Planned","Year Planned","Acres Applied","Date Applied","Certified by",null,"Comments"]
[null,null,10,null,null,null,null,null,"NRCS","TSP"]
[null,null,null,1]
[{"$f":"IF($C$208<2,\"No\",\"Yes\")","v":"Yes"},null,null,2]
[{"$f":"IF($C$208<3,\"No\",\"Yes\")","v":"Yes"},null,null,3]
[{"$f":"IF($C$208<4,\"No\",\"Yes\")","v":"Yes"},null,null,4]
[{"$f":"IF($C$208<5,\"No\",\"Yes\")","v":"Yes"},null,null,5]
[{"$f":"IF($C$208<6,\"No\",\"Yes\")","v":"Yes"},null,null,6]
[{"$f":"IF($C$208<7,\"No\",\"Yes\")","v":"Yes"},null,null,7]
[{"$f":"IF($C$208<8,\"No\",\"Yes\")","v":"Yes"},null,null,8]
[{"$f":"IF($C$208<9,\"No\",\"Yes\")","v":"Yes"},null,null,9]
[{"$f":"IF($C$208<10,\"No\",\"Yes\")","v":"Yes"},null,null,10]
[]
[null,null,"Certification Statement:"]
[null,null,"I certify that implementation of this conservation practice is complete, meets criteria for the stated purpose(s), and meets the related NRCS conservation practice standard and specifications."]
[]
[null,null,"Certified By:"]
[]
[]
[]
[null,null,"Table 2: Mid-Contract Management Activity and Schedule"]
[null,null,"Select number of fields",null,null,null,null,null,null,"(items in grey for USDA reporting)"]
[null,null,null,"Field","Mid-Contract Management",null,null,"Acres Planned","Year Planned","Acres Applied","Year Applied","Certified By:"]
[null,null,10,null,null,null,null,null,null,null,null,"NRCS / TSP","Participant"]
[null,null,null,1,"Select an MCM "]
[{"$f":"IF($C$230<2,\"No\",\"Yes\")","v":"Yes"},null,null,2,"Select an MCM "]
[{"$f":"IF($C$230<3,\"No\",\"Yes\")","v":"Yes"},null,null,3,"Select an MCM "]
[{"$f":"IF($C$230<4,\"No\",\"Yes\")","v":"Yes"},null,null,4,"Select an MCM "]
[{"$f":"IF($C$230<5,\"No\",\"Yes\")","v":"Yes"},null,null,5,"Select an MCM "]
[{"$f":"IF($C$230<6,\"No\",\"Yes\")","v":"Yes"},null,null,6,"Select an MCM "]
[{"$f":"IF($C$230<7,\"No\",\"Yes\")","v":"Yes"},null,null,7,"Select an MCM "]
[{"$f":"IF($C$230<8,\"No\",\"Yes\")","v":"Yes"},null,null,8,"Select an MCM "]
[{"$f":"IF($C$230<9,\"No\",\"Yes\")","v":"Yes"},null,null,9,"Select an MCM "]
[{"$f":"IF($C$230<10,\"No\",\"Yes\")","v":"Yes"},null,null,10,"Select an MCM "]
[]
[null,null,"Certification Statement:"]
[null,null,"I certify that implementation of this conservation practice is complete, meets criteria for the stated purpose(s), and meets the NRCS conservation practice (391) standard and specifications."]
[]
[null,null,"Certified By:"]

{"sheet":"Re-enrolled CP22","index":3,"n_rows":112,"n_cols":13,"rows_kept":112,"cut":false,"hidden":false,"merged":[[50,5,50,7],[50,8,50,11],[47,2,47,4],[47,5,47,7],[47,8,47,11],[48,8,48,11],[49,8,49,11],[50,2,50,4],[49,2,49,4],[49,5,49,7],[27,2,27,3],[27,4,27,10],[2,2,2,3],[2,4,2,7],[2,10,2,11],[3,2,3,3],[3,4,3,7],[4,2,4,3],[4,4,4,7],[4,10,4,11],[7,2,9,12],[25,2,25,3],[25,4,25,10],[26,2,26,3],[26,4,26,10],[28,4,28,10],[29,4,29,10],[30,4,30,10],[33,2,33,12],[36,2,36,12],[53,2,53,12],[55,2,55,12],[71,2,72,2],[72,3,73,3],[72,4,73,4],[72,5,73,5],[72,6,73,6],[72,7,73,7],[72,8,72,9],[72,10,72,11],[96,11,96,12],[85,2,85,5],[86,2,86,12],[95,2,96,2],[96,3,97,3],[96,4,96,6],[96,7,97,7],[96,8,97,8],[96,9,97,9],[96,10,97,10],[98,4,98,6],[99,4,99,6],[100,4,100,6],[101,4,101,6],[102,4,102,6],[109,2,109,12],[103,4,103,6],[104,4,104,6],[105,4,105,6],[106,4,106,6],[107,4,107,6],[108,2,108,10],[37,3,37,12],[44,2,44,4],[44,5,44,7],[43,2,43,12],[48,2,48,4],[48,5,48,7],[44,8,44,11],[45,2,45,4],[45,5,45,7],[45,8,45,11],[46,2,46,4],[46,5,46,7],[46,8,46,11],[40,2,40,12],[41,2,41,12],[42,2,42,12]]}
[]
[]
[null,null,"Participant:",null,null,null,null,null,null,"FSA Contract:  "]
[null,null,"Location:",null,null,null,null,null,null,"County:  "]
[null,null,"Farm Number:",null,null,null,null,null,null,"Tract Number:  "]
[]
[null,null,"Definition"]
[null,null,"Riparian forest buffers are areas of predominantly trees and/or shrubs located adjacent to and upslope from watercourses or water bodies. Dominant vegetation in buffers is native species of trees and/or shrubs."]
[]
[]
[]
[]
[]
[]
[]
[]
[]
[]
[]
[]
[]
[]
[]
[null,null,"Purpose(s):  "]
[null,null,"Maintain the existing Riparian Forest Buffer to:   (select all that apply)   "]
[null,null,"1.",null,"Select a Purpose"]
[null,null,"2.",null,"Select a Purpose"]
[null,null,"3.",null,"Select a Purpose"]
[null,null,null,"4.","Select a Purpose"]
[null,null,null,"5.","Select a Purpose"]
[null,null,null,"6.","Select a Purpose"]
[]
[null,null,"Description:"]
[null,null,"The plants in a riparian forest buffer remove sediment, nutrients, pesticides and other pollutants in runoff that would otherwise reach streams and other water bodies.  Their leafy canopies shade and cool the water, which in turn encourages natural in-steam processes and supports fish and insects.  In some cases, those same canopies provide nectar, pollen, and egg-laying sites for pollinators.  The buffers offer safety, food and living space for many wildlife species, frequently providing much-needed connecting corridors and linkages across the landscape.  The plants in the buffer also improve air quality by removing carbon dioxide from the air and storing it as organic carbon in the vegetation and soil."]
[]
[null,null,"Practice Guidance for Re-enrolled Riparian Forest Buffers:  "]
[null,null,"Maintain native trees and shrubs in the fields indicated in Table 1 and on the Conservation Plan Map.  As these CP22 acres are already established, follow the Operation and Maintenance requirements below.  CRP/CREP contracts also require periodic management of CP22 acres, which should follow the Mid-Contract Management guidance below. "]
[null,null,"SITE-                   SPECIFIC NOTES","Enter text here"]
[]
[null,null,"Operation and Maintenance:   "]
[null,null,"To be compliant with the CRP/CREP contract, either 60% canopy cover OR 70% of the number of trees and shrubs originally planted must be present on the CP22 acres throughout the CRP/CREP contract.  Canopy cover or number of woody stems can include acceptable volunteer native trees or shrubs."]
[null,null,"To control unwanted vegetation and to keep the existing conservation cover in compliance with the CRP/CREP contract, perform maintenance (by spot mowing or herbicide treatment) on specific, limited locations where weeds occur, rather than whole fields or pre-set amounts of fields (i.e. 1/3 of a field).  Mow up to 20% (one-fifth) of any CP22 field in any given year; do not mow below 6 inches in height.  Treatment with appropriate herbicides should always follow label directions for rate, amount, and timing of herbicide application.  "]
[null,null,"Both spot mowing and herbicide treatment must occur between August 1 and August 31.  Spot mowing or herbicide treatment needed at other times of the year—for example, thistle control in May or early June—is possible, but must be requested from and pre-approved by the FSA County Committee.  "]
[null,null,"Control noxious weeds (see list below) on all CP22 acres over the entire length of the CRP/CREP contract.  Mowing alone may not be sufficient to control noxious or invasive  vegetation; a follow-up herbicide treatment may be necessary.  Any CP22 trees aand/or shrubs destroyed must be re-established."]
[null,null,"animated oat",null,null,"giant hogweed",null,null,"musk/nodding thistle"]
[null,null,"broomrape",null,null,"goatsrue",null,null,"Palmer amaranth"]
[null,null,"bull thistle",null,null,"hydrilla",null,null,"poison hemlock"]
[null,null,"Canada thistle",null,null,"johnsongrass",null,null,"purple loosestrife"]
[null,null,"common waterhemp",null,null,"kudzu",null,null,"shattercane"]
[null,null,"dodder",null,null,"mile-a-minute",null,null,"tall waterhemp"]
[null,null,"Eur. wand loosestrife",null,null,"multiflora rose",null,null,"wavyleaf basketgrass"]
[]
[null,null,"Mid-Contract Management (MCM):   "]
[null,null,"Implement the MCM practices indicated in Table 2 below, to prolong, improve, or diversify the benefits of the CP22 cover.  Specific guidance for each MCM practice chosen can be found on the related Job Sheet(s) included with this CRP/CREP plan.  Contact NRCS for a site visit and field evaluation before conducting MCM, to verify that the contracted MCM activity applies to the condition of the site."]
[]
[null,null,"By signing this document, the participant agrees to implement the Riparian Forest Buffer (CP22) conservation practice, following the technical recommendations provided by NRCS and approved by FSA."]
[]
[]
[]
[]
[]
[]
[]
[]
[]
[]
[]
[]
[]
[]
[null,null,"Table 1: Riparian Forest Buffer (CP22) installation",null,null,null,null,null,"(items in grey are for USDA reporting only)"]
[null,null,"Select number of fields"]
[null,null,null,"Field","Acres Planned","Year Planned","Acres Applied","Date Applied","Certified by",null,"Comments"]
[null,null,10,null,null,null,null,null,"NRCS","TSP"]
[null,null,null,1]
[{"$f":"IF($C$74<2,\"No\",\"Yes\")","v":"Yes"},null,null,2]
[{"$f":"IF($C$74<3,\"No\",\"Yes\")","v":"Yes"},null,null,3]
[{"$f":"IF($C$74<4,\"No\",\"Yes\")","v":"Yes"},null,null,4]
[{"$f":"IF($C$74<5,\"No\",\"Yes\")","v":"Yes"},null,null,5]
[{"$f":"IF($C$74<6,\"No\",\"Yes\")","v":"Yes"},null,null,6]
[{"$f":"IF($C$74<7,\"No\",\"Yes\")","v":"Yes"},null,null,7]
[{"$f":"IF($C$74<8,\"No\",\"Yes\")","v":"Yes"},null,null,8]
[{"$f":"IF($C$74<9,\"No\",\"Yes\")","v":"Yes"},null,null,9]
[{"$f":"IF($C$74<10,\"No\",\"Yes\")","v":"Yes"},null,null,10]
[]
[null,null,"Certification Statement:"]
[null,null,"I certify that implementation of this conservation practice is complete, meets criteria for the stated purpose(s), and meets the related NRCS conservation practice standard and specifications."]
[]
[null,null,"Certified By:"]
[]
[]
[]
[]
[]
[null,null,"Table 2: Mid-Contract Management Activity and Schedule"]
[null,null,"Select number of fields",null,null,null,null,null,null,"     (items in grey are for USDA reporting only)"]
[null,null,null,"Field","Mid-Contract Management",null,null,"Acres Planned","Year Planned","Acres Applied","Year Applied","Certified By:"]
[null,null,10,null,null,null,null,null,null,null,null,"NRCS / TSP","Participant"]
[null,null,null,1,"Select an MCM "]
[{"$f":"IF($C$98<2,\"No\",\"Yes\")","v":"Yes"},null,null,2,"Select an MCM "]
[{"$f":"IF($C$98<3,\"No\",\"Yes\")","v":"Yes"},null,null,3,"Select an MCM "]
[{"$f":"IF($C$98<4,\"No\",\"Yes\")","v":"Yes"},null,null,4,"Select an MCM "]
[{"$f":"IF($C$98<5,\"No\",\"Yes\")","v":"Yes"},null,null,5,"Select an MCM "]
[{"$f":"IF($C$98<6,\"No\",\"Yes\")","v":"Yes"},null,null,6,"Select an MCM "]
[{"$f":"IF($C$98<7,\"No\",\"Yes\")","v":"Yes"},null,null,7,"Select an MCM "]
[{"$f":"IF($C$98<8,\"No\",\"Yes\")","v":"Yes"},null,null,8,"Select an MCM "]
[{"$f":"IF($C$98<9,\"No\",\"Yes\")","v":"Yes"},null,null,9,"Select an MCM "]
[{"$f":"IF($C$98<10,\"No\",\"Yes\")","v":"Yes"},null,null,10,"Select an MCM "]
[null,null,"Certification Statement:"]
[null,null,"I certify that implementation of this conservation practice is complete, meets criteria for the stated purpose(s), and meets the NRCS conservation practice standard and specifications."]
[]
[null,null,"Certified By:"]